[Event "Vastgota Open 2022"]
[Site "Skara stadshotell, Jarnvagsgatan 5, Skara, Sweden"]
[Date "2022.10.29"]
[Round "3.2"]
[White "Cramling, Pia"]
[Black "Aroven, Mikael"]
[Result "1-0"]
[TimeControl "30 minutes + 10 seconds per move from move one."]
[WhiteTitle "GM"]
[WhiteFideId "1700030"]
[BlackFideId "1709534"]
[WhiteElo "2421"]
[BlackElo "2089"]

1. Nf3 {[%clk 00:30:16]} {[%emt 00:00:03]} Nf6 {[%clk 00:30:04]} {[%emt
00:00:16]} 2. c4 {[%clk 00:30:20]} {[%emt 00:00:07]} g6 {[%clk 00:29:10]}
{[%emt 00:01:03]} 3. Nc3 {[%clk 00:30:24]} {[%emt 00:00:06]} d5 {[%clk
00:28:40]} {[%emt 00:00:40]} 4. cxd5 {[%clk 00:29:06]} {[%emt 00:01:28]} Nxd5
{[%clk 00:28:46]} {[%emt 00:00:04]} 5. Qb3 {[%clk 00:29:12]} {[%emt 00:00:05]}
Nxc3 {[%clk 00:28:23]} {[%emt 00:00:33]} 6. Qxc3 {[%clk 00:28:30]} {[%emt
00:00:52]} Rg8 {[%clk 00:28:26]} {[%emt 00:00:08]} 7. d4 {[%clk 00:28:00]}
{[%emt 00:00:39]} Nc6 {[%clk 00:25:35]} {[%emt 00:03:02]} 8. e4 {[%clk
00:26:17]} {[%emt 00:01:52]} Qd6 {[%clk 00:20:52]} {[%emt 00:04:53]} 9. Bc4
{[%clk 00:22:06]} {[%emt 00:04:20]} Bg7 {[%clk 00:19:19]} {[%emt 00:01:43]} 10.
e5 {[%clk 00:18:37]} {[%emt 00:03:40]} Qb4 {[%clk 00:16:37]} {[%emt 00:02:52]}
11. Ng5 {[%clk 00:18:23]} {[%emt 00:00:24]} Qxc3+ {[%clk 00:16:02]} {[%emt
00:00:46]} 12. bxc3 {[%clk 00:18:32]} e6 {[%clk 00:14:47]} {[%emt 00:01:24]} 13.
Nxh7 {[%clk 00:17:24]} {[%emt 00:01:17]} Na5 {[%clk 00:14:55]} {[%emt
00:00:04]} 14. Bd3 {[%clk 00:17:02]} {[%emt 00:00:31]} c5 {[%clk 00:13:30]}
{[%emt 00:01:36]} 15. Bg5 {[%clk 00:15:02]} {[%emt 00:02:08]} Bd7 {[%clk
00:11:54]} {[%emt 00:01:48]} 16. O-O {[%clk 00:13:56]} {[%emt 00:01:15]} Rc8
{[%clk 00:11:31]} {[%emt 00:00:33]} 17. Rab1 {[%clk 00:13:00]} {[%emt
00:01:06]} c4 {[%clk 00:09:55]} {[%emt 00:01:46]} 18. Be4 {[%clk 00:12:15]}
{[%emt 00:00:54]} Bc6 {[%clk 00:10:04]} {[%emt 00:00:02]} 19. Bxc6+ {[%clk
00:11:46]} {[%emt 00:00:40]} Rxc6 {[%clk 00:10:12]} {[%emt 00:00:01]} 20. Rb5
{[%clk 00:11:28]} {[%emt 00:00:28]} b6 {[%clk 00:09:57]} {[%emt 00:00:25]} 21.
d5 {[%clk 00:10:47]} {[%emt 00:00:51]} Rc7 {[%clk 00:09:40]} {[%emt 00:00:27]}
22. Bf6 {[%clk 00:07:13]} {[%emt 00:03:44]} Rh8 {[%clk 00:05:16]} {[%emt
00:04:35]} 23. Ng5 {[%clk 00:07:15]} {[%emt 00:00:08]} Rh5 {[%clk 00:04:56]}
{[%emt 00:00:29]} 24. Ne4 {[%clk 00:06:00]} {[%emt 00:01:25]} Bf8 {[%clk
00:04:20]} {[%emt 00:00:44]} 25. g4 {[%clk 00:06:04]} {[%emt 00:00:08]} Rh3
{[%clk 00:04:05]} {[%emt 00:00:25]} 26. f3 {[%clk 00:05:28]} {[%emt 00:00:46]}
Kd7 {[%clk 00:02:53]} {[%emt 00:01:23]} 27. Kg2 {[%clk 00:04:58]} {[%emt
00:00:40]} Rh6 {[%clk 00:02:54]} {[%emt 00:00:09]} 28. d6 {[%clk 00:04:53]}
{[%emt 00:00:15]} Rc8 {[%clk 00:02:48]} {[%emt 00:00:15]} 29. Ng5 {[%clk
00:04:40]} {[%emt 00:00:23]} Nb7 {[%clk 00:01:49]} {[%emt 00:01:11]} 30. Nxf7
{[%clk 00:04:43]} {[%emt 00:00:07]} Rh7 {[%clk 00:01:56]} {[%emt 00:00:02]} 31.
Ng5 {[%clk 00:04:52]} {[%emt 00:00:01]} Rh6 {[%clk 00:02:04]} {[%emt 00:00:02]}
32. Ne4 {[%clk 00:04:51]} {[%emt 00:00:10]} Rh7 {[%clk 00:02:04]} {[%emt
00:00:11]} 33. Rd1 {[%clk 00:04:41]} {[%emt 00:00:20]} Bh6 {[%clk 00:01:53]}
{[%emt 00:00:21]} 34. Bg5 {[%clk 00:04:36]} {[%emt 00:00:14]} Bxg5 {[%clk
00:01:38]} {[%emt 00:00:26]} 35. Nxg5 {[%clk 00:04:44]} {[%emt 00:00:01]} Nc5
{[%clk 00:01:40]} {[%emt 00:00:09]} 36. Nxh7 {[%clk 00:04:40]} {[%emt
00:00:04]} 1-0

[Event "Vastgota Open 2022"]
[Site "Skara stadshotell, Jarnvagsgatan 5, Skara, Sweden"]
[Date "2022.10.29"]
[Round "3.3"]
[White "Golubka, Petro"]
[Black "Danielsson, Fredrik"]
[Result "1-0"]
[TimeControl "30 minutes + 10 seconds per move from move one."]
[WhiteTitle "GM"]
[WhiteFideId "14114224"]
[BlackFideId "1729993"]
[WhiteElo "2335"]
[BlackElo "2082"]

1. e4 {[%clk 00:25:07]} {[%emt 00:05:12]} d5 {[%clk 00:30:17]} {[%emt
00:00:04]} 2. e5 {[%clk 00:25:04]} {[%emt 00:00:13]} c5 {[%clk 00:30:24]}
{[%emt 00:00:02]} 3. f4 {[%clk 00:25:10]} {[%emt 00:00:05]} Nc6 {[%clk
00:30:27]} {[%emt 00:00:07]} 4. Nf3 {[%clk 00:25:11]} {[%emt 00:00:09]} Bg4
{[%clk 00:30:20]} {[%emt 00:00:16]} 5. Bb5 {[%clk 00:25:05]} {[%emt 00:00:17]}
Qb6 {[%clk 00:29:54]} {[%emt 00:00:36]} 6. a4 {[%clk 00:25:02]} {[%emt
00:00:14]} a6 {[%clk 00:29:27]} {[%emt 00:00:37]} 7. Bxc6+ {[%clk 00:24:45]}
{[%emt 00:00:27]} Qxc6 {[%clk 00:29:25]} {[%emt 00:00:12]} 8. h3 {[%clk
00:24:51]} {[%emt 00:00:04]} Bxf3 {[%clk 00:28:53]} {[%emt 00:00:41]} 9. Qxf3
{[%clk 00:24:59]} {[%emt 00:00:02]} e6 {[%clk 00:28:57]} {[%emt 00:00:07]} 10.
Nc3 {[%clk 00:24:33]} {[%emt 00:00:36]} Ne7 {[%clk 00:27:38]} {[%emt 00:01:29]}
11. Ne2 {[%clk 00:24:03]} {[%emt 00:00:40]} h5 {[%clk 00:26:39]} {[%emt
00:01:08]} 12. g3 {[%clk 00:23:08]} {[%emt 00:01:04]} d4 {[%clk 00:25:38]}
{[%emt 00:01:11]} 13. Qxc6+ {[%clk 00:22:44]} {[%emt 00:00:35]} Nxc6 {[%clk
00:25:45]} {[%emt 00:00:02]} 14. d3 {[%clk 00:22:18]} {[%emt 00:00:36]} Nb4
{[%clk 00:24:54]} {[%emt 00:01:01]} 15. Kd1 {[%clk 00:22:17]} {[%emt 00:00:12]}
g6 {[%clk 00:23:52]} {[%emt 00:01:11]} 16. Bd2 {[%clk 00:22:11]} {[%emt
00:00:16]} Nd5 {[%clk 00:23:59]} {[%emt 00:00:03]} 17. a5 {[%clk 00:21:46]}
{[%emt 00:00:36]} Be7 {[%clk 00:23:43]} {[%emt 00:00:26]} 18. c3 {[%clk
00:21:38]} {[%emt 00:00:18]} dxc3 {[%clk 00:22:33]} {[%emt 00:01:20]} 19. bxc3
{[%clk 00:21:46]} {[%emt 00:00:02]} O-O-O {[%clk 00:22:24]} {[%emt 00:00:18]}
20. Kc2 {[%clk 00:21:40]} {[%emt 00:00:16]} Rd7 {[%clk 00:21:48]} {[%emt
00:00:45]} 21. c4 {[%clk 00:20:17]} {[%emt 00:01:35]} Nb4+ {[%clk 00:20:37]}
{[%emt 00:01:22]} 22. Bxb4 {[%clk 00:20:21]} {[%emt 00:00:04]} cxb4 {[%clk
00:20:45]} {[%emt 00:00:02]} 23. d4 {[%clk 00:19:51]} {[%emt 00:00:40]} Rhd8
{[%clk 00:19:58]} {[%emt 00:00:56]} 24. Kb3 {[%clk 00:19:32]} {[%emt 00:00:29]}
Kb8 {[%clk 00:19:37]} {[%emt 00:00:30]} 25. c5 {[%clk 00:17:56]} {[%emt
00:01:47]} Kc7 {[%clk 00:17:46]} {[%emt 00:02:01]} 26. Kc4 {[%clk 00:16:54]}
{[%emt 00:01:13]} Kc6 {[%clk 00:17:24]} {[%emt 00:00:32]} 27. Rhc1 {[%clk
00:13:38]} {[%emt 00:03:26]} Rd5 {[%clk 00:16:11]} {[%emt 00:01:22]} 28. Rab1
{[%clk 00:13:13]} {[%emt 00:00:35]} R8d7 {[%clk 00:14:29]} {[%emt 00:01:52]} 29.
Rxb4 {[%clk 00:12:51]} {[%emt 00:00:33]} Bd8 {[%clk 00:05:59]} {[%emt
00:08:40]} 30. Ra1 {[%clk 00:12:40]} {[%emt 00:00:21]} Be7 {[%clk 00:05:58]}
{[%emt 00:00:10]} 31. Rb6+ {[%clk 00:12:10]} {[%emt 00:00:40]} Kc7 {[%clk
00:06:06]} {[%emt 00:00:02]} 32. Rd6 {[%clk 00:11:40]} {[%emt 00:00:40]} Kc8
{[%clk 00:04:48]} {[%emt 00:01:28]} 33. Nc3 {[%clk 00:11:03]} {[%emt 00:00:47]}
Bxd6 {[%clk 00:02:59]} {[%emt 00:01:58]} 34. cxd6 {[%clk 00:10:58]} {[%emt
00:00:15]} b5+ {[%clk 00:02:20]} {[%emt 00:00:50]} 35. axb6 {[%clk 00:10:52]}
{[%emt 00:00:16]} Kb7 {[%clk 00:02:17]} {[%emt 00:00:13]} 36. Nxd5 {[%clk
00:10:51]} {[%emt 00:00:10]} exd5+ {[%clk 00:02:23]} {[%emt 00:00:04]} 37. Kxd5
{[%clk 00:10:47]} {[%emt 00:00:14]} Rd8 {[%clk 00:01:01]} {[%emt 00:01:32]} 38.
g4 {[%clk 00:10:38]} {[%emt 00:00:19]} hxg4 {[%clk 00:01:05]} {[%emt 00:00:05]}
39. hxg4 {[%clk 00:10:36]} {[%emt 00:00:13]} Kxb6 {[%clk 00:01:09]} {[%emt
00:00:07]} 40. Rb1+ {[%clk 00:10:34]} {[%emt 00:00:11]} 1-0

[Event "Vastgota Open 2022"]
[Site "Skara stadshotell, Jarnvagsgatan 5, Skara, Sweden"]
[Date "2022.10.29"]
[Round "3.4"]
[White "Kleimark, Anders"]
[Black "Ronneland, Daniel"]
[Result "1-0"]
[TimeControl "30 minutes + 10 seconds per move from move one."]
[WhiteFideId "1709968"]
[BlackFideId "1702130"]
[WhiteElo "2048"]
[BlackElo "2206"]

1. d4 {[%clk 00:30:16]} {[%emt 00:08:00]} Nf6 {[%clk 00:30:06]} {[%emt
00:00:14]} 2. c4 {[%clk 00:30:11]} {[%emt 00:00:15]} c5 {[%clk 00:30:04]}
{[%emt 00:00:13]} 3. d5 {[%clk 00:30:03]} {[%emt 00:00:17]} b5 {[%clk
00:29:11]} {[%emt 00:01:03]} 4. cxb5 {[%clk 00:30:01]} {[%emt 00:00:13]} a6
{[%clk 00:29:17]} {[%emt 00:00:04]} 5. bxa6 {[%clk 00:29:59]} {[%emt 00:00:12]}
Bxa6 {[%clk 00:29:19]} {[%emt 00:00:07]} 6. Nc3 {[%clk 00:30:01]} {[%emt
00:00:07]} d6 {[%clk 00:28:55]} {[%emt 00:00:35]} 7. e4 {[%clk 00:29:57]}
{[%emt 00:00:14]} Bxf1 {[%clk 00:29:00]} {[%emt 00:00:05]} 8. Kxf1 {[%clk
00:30:04]} {[%emt 00:00:03]} g6 {[%clk 00:29:04]} {[%emt 00:00:06]} 9. g3
{[%clk 00:30:03]} {[%emt 00:00:10]} Bg7 {[%clk 00:29:10]} {[%emt 00:00:04]} 10.
Kg2 {[%clk 00:30:06]} {[%emt 00:00:08]} O-O {[%clk 00:29:14]} {[%emt 00:00:06]}
11. Nf3 {[%clk 00:30:13]} {[%emt 00:00:03]} Nbd7 {[%clk 00:29:19]} {[%emt
00:00:05]} 12. a4 {[%clk 00:29:50]} {[%emt 00:00:33]} Ra6 {[%clk 00:29:11]}
{[%emt 00:00:18]} 13. Qe2 {[%clk 00:28:36]} {[%emt 00:01:24]} Qa8 {[%clk
00:29:00]} {[%emt 00:00:20]} 14. Bf4 {[%clk 00:25:06]} {[%emt 00:03:40]} e6
{[%clk 00:27:06]} {[%emt 00:02:04]} 15. dxe6 {[%clk 00:22:13]} {[%emt
00:03:05]} fxe6 {[%clk 00:26:54]} {[%emt 00:00:23]} 16. Rhd1 {[%clk 00:19:45]}
{[%emt 00:02:36]} d5 {[%clk 00:20:52]} {[%emt 00:06:12]} 17. exd5 {[%clk
00:18:28]} {[%emt 00:01:28]} exd5 {[%clk 00:20:38]} {[%emt 00:00:23]} 18. Nb5
{[%clk 00:15:24]} {[%emt 00:03:15]} Qc6 {[%clk 00:14:46]} {[%emt 00:05:58]} 19.
Kg1 {[%clk 00:13:47]} {[%emt 00:01:51]} Kh8 {[%clk 00:08:52]} {[%emt 00:06:04]}
20. Qd3 {[%clk 00:11:59]} {[%emt 00:01:58]} d4 {[%clk 00:07:57]} {[%emt
00:01:05]} 21. Bd6 {[%clk 00:10:52]} {[%emt 00:01:17]} Rfa8 {[%clk 00:06:47]}
{[%emt 00:01:19]} 22. Ng5 {[%clk 00:09:09]} {[%emt 00:01:54]} Rxa4 {[%clk
00:04:04]} {[%emt 00:02:54]} 23. Rxa4 {[%clk 00:08:39]} {[%emt 00:00:39]} Rxa4
{[%clk 00:04:12]} {[%emt 00:00:02]} 24. Nf7+ {[%clk 00:07:55]} {[%emt
00:00:54]} Kg8 {[%clk 00:04:17]} {[%emt 00:00:04]} 25. Qb3 {[%clk 00:07:57]}
{[%emt 00:00:09]} Rb4 {[%clk 00:04:04]} {[%emt 00:00:23]} 26. Nh6+ {[%clk
00:07:41]} {[%emt 00:00:26]} Kh8 {[%clk 00:04:03]} {[%emt 00:00:11]} 27. Qg8+
{[%clk 00:07:45]} {[%emt 00:00:06]} 1-0

[Event "Vastgota Open 2022"]
[Site "Skara stadshotell, Jarnvagsgatan 5, Skara, Sweden"]
[Date "2022.10.29"]
[Round "3.5"]
[White "Johansson, Ulf"]
[Black "Bengtsson, Siv"]
[Result "1-0"]
[TimeControl "30 minutes + 10 seconds per move from move one."]
[WhiteFideId "1701380"]
[BlackFideId "1701673"]
[WhiteElo "2183"]
[BlackElo "1952"]

1. Nf3 {[%clk 00:30:16]} {[%emt 00:00:02]} Nf6 {[%clk 00:30:11]} {[%emt
00:00:10]} 2. g3 {[%clk 00:30:22]} {[%emt 00:00:05]} e6 {[%clk 00:29:48]}
{[%emt 00:00:33]} 3. Bg2 {[%clk 00:30:27]} {[%emt 00:00:05]} c5 {[%clk
00:29:35]} {[%emt 00:00:22]} 4. c4 {[%clk 00:30:15]} {[%emt 00:00:22]} d5
{[%clk 00:29:03]} {[%emt 00:00:42]} 5. cxd5 {[%clk 00:30:05]} {[%emt 00:00:20]}
Nxd5 {[%clk 00:27:26]} {[%emt 00:01:47]} 6. d4 {[%clk 00:30:00]} {[%emt
00:00:15]} Nc6 {[%clk 00:26:39]} {[%emt 00:00:58]} 7. O-O {[%clk 00:29:57]}
{[%emt 00:00:13]} Nc7 {[%clk 00:24:16]} {[%emt 00:02:33]} 8. Ne5 {[%clk
00:26:53]} {[%emt 00:03:15]} Bd7 {[%clk 00:18:55]} {[%emt 00:05:32]} 9. Nxd7
{[%clk 00:25:10]} {[%emt 00:01:52]} Qxd7 {[%clk 00:18:58]} {[%emt 00:00:07]} 10.
dxc5 {[%clk 00:25:12]} {[%emt 00:00:08]} Qxd1 {[%clk 00:14:50]} {[%emt
00:04:18]} 11. Rxd1 {[%clk 00:25:19]} {[%emt 00:00:02]} Bxc5 {[%clk 00:14:51]}
{[%emt 00:00:10]} 12. Nc3 {[%clk 00:25:18]} {[%emt 00:00:11]} Ke7 {[%clk
00:13:55]} {[%emt 00:01:06]} 13. Bf4 {[%clk 00:23:31]} {[%emt 00:01:57]} Rac8
{[%clk 00:08:01]} {[%emt 00:06:05]} 14. Rac1 {[%clk 00:22:20]} {[%emt
00:01:20]} Rhd8 {[%clk 00:04:47]} {[%emt 00:03:24]} 15. Rxd8 {[%clk 00:21:23]}
{[%emt 00:01:08]} Kxd8 {[%clk 00:04:27]} {[%emt 00:00:30]} 16. Bxc6 {[%clk
00:17:28]} {[%emt 00:04:04]} bxc6 {[%clk 00:04:20]} {[%emt 00:00:17]} 17. Ne4
{[%clk 00:17:32]} {[%emt 00:00:06]} Bd4 {[%clk 00:04:15]} {[%emt 00:00:15]} 18.
Rd1 {[%clk 00:16:45]} {[%emt 00:00:57]} e5 {[%clk 00:03:35]} {[%emt 00:00:50]}
19. Bxe5 {[%clk 00:16:48]} {[%emt 00:00:07]} Ne6 {[%clk 00:03:38]} {[%emt
00:00:08]} 20. Bxd4 {[%clk 00:16:43]} {[%emt 00:00:15]} Ke7 {[%clk 00:03:36]}
{[%emt 00:00:12]} 21. Bc5+ {[%clk 00:16:21]} {[%emt 00:00:32]} Nxc5 {[%clk
00:03:27]} {[%emt 00:00:19]} 22. Nxc5 {[%clk 00:16:29]} {[%emt 00:00:03]} Rb8
{[%clk 00:03:34]} {[%emt 00:00:02]} 23. b3 {[%clk 00:16:21]} {[%emt 00:00:18]}
Rb5 {[%clk 00:03:40]} {[%emt 00:00:04]} 24. Nd3 {[%clk 00:15:56]} {[%emt
00:00:34]} Ra5 {[%clk 00:03:30]} {[%emt 00:00:21]} 25. Rd2 {[%clk 00:15:59]}
{[%emt 00:00:07]} Rd5 {[%clk 00:03:29]} {[%emt 00:00:10]} 26. Rc2 {[%clk
00:16:01]} {[%emt 00:00:08]} Kd6 {[%clk 00:03:36]} {[%emt 00:00:04]} 27. Kg2
{[%clk 00:15:57]} {[%emt 00:00:14]} g5 {[%clk 00:03:41]} {[%emt 00:00:05]} 28.
Nb4 {[%clk 00:15:56]} {[%emt 00:00:11]} Rb5 {[%clk 00:03:24]} {[%emt 00:00:26]}
29. Nxc6 {[%clk 00:15:57]} {[%emt 00:00:10]} a5 {[%clk 00:03:27]} {[%emt
00:00:07]} 30. Nd4 {[%clk 00:15:56]} {[%emt 00:00:12]} Rd5 {[%clk 00:03:33]}
{[%emt 00:00:04]} 31. e3 {[%clk 00:16:04]} {[%emt 00:00:03]} h5 {[%clk
00:03:10]} {[%emt 00:00:33]} 32. Rc6+ {[%clk 00:16:03]} {[%emt 00:00:12]} Ke7
{[%clk 00:03:14]} {[%emt 00:00:04]} 33. Rb6 {[%clk 00:16:03]} {[%emt 00:00:11]}
f5 {[%clk 00:03:01]} {[%emt 00:00:23]} 34. Rb5 {[%clk 00:16:05]} {[%emt
00:00:08]} Rxb5 {[%clk 00:03:04]} {[%emt 00:00:08]} 35. Nxb5 {[%clk 00:16:13]}
{[%emt 00:00:02]} Ke6 {[%clk 00:03:09]} {[%emt 00:00:05]} 36. Na3 {[%clk
00:15:56]} {[%emt 00:00:26]} Kd5 {[%clk 00:03:11]} {[%emt 00:00:08]} 37. Kf3
{[%clk 00:16:00]} {[%emt 00:00:07]} Kc5 {[%clk 00:03:17]} {[%emt 00:00:03]} 38.
Nc2 {[%clk 00:16:08]} {[%emt 00:00:02]} 1-0

[Event "Vastgota Open 2022"]
[Site "Skara stadshotell, Jarnvagsgatan 5, Skara, Sweden"]
[Date "2022.10.29"]
[Round "3.6"]
[White "Eklund, Lars-Goran"]
[Black "Ranby, Hans"]
[Result "1-0"]
[TimeControl "30 minutes + 10 seconds per move from move one."]
[WhiteTitle "FM"]
[WhiteFideId "1701010"]
[BlackFideId "1710311"]
[WhiteElo "2176"]
[BlackElo "1858"]

1. Nf3 {[%clk 00:30:14]} {[%emt 00:00:04]} Nf6 {[%clk 00:30:16]} {[%emt
00:00:04]} 2. c4 {[%clk 00:30:22]} {[%emt 00:00:03]} g6 {[%clk 00:29:53]}
{[%emt 00:00:33]} 3. Nc3 {[%clk 00:30:29]} {[%emt 00:00:03]} Bg7 {[%clk
00:30:00]} {[%emt 00:00:02]} 4. e4 {[%clk 00:30:37]} {[%emt 00:00:03]} d6
{[%clk 00:29:54]} {[%emt 00:00:16]} 5. d4 {[%clk 00:30:44]} {[%emt 00:00:03]}
O-O {[%clk 00:29:30]} {[%emt 00:00:33]} 6. Be2 {[%clk 00:30:52]} {[%emt
00:00:03]} Bg4 {[%clk 00:28:50]} {[%emt 00:00:49]} 7. Be3 {[%clk 00:30:59]}
{[%emt 00:00:04]} Nbd7 {[%clk 00:28:42]} {[%emt 00:00:18]} 8. Qd2 {[%clk
00:27:50]} {[%emt 00:03:18]} e5 {[%clk 00:27:42]} {[%emt 00:01:10]} 9. O-O
{[%clk 00:21:31]} {[%emt 00:06:31]} exd4 {[%clk 00:27:02]} {[%emt 00:00:47]} 10.
Nxd4 {[%clk 00:20:57]} {[%emt 00:00:46]} Bxe2 {[%clk 00:26:38]} {[%emt
00:00:33]} 11. Qxe2 {[%clk 00:21:04]} {[%emt 00:00:06]} Re8 {[%clk 00:25:23]}
{[%emt 00:01:23]} 12. f3 {[%clk 00:20:53]} {[%emt 00:00:21]} Nc5 {[%clk
00:24:09]} {[%emt 00:01:24]} 13. Rfd1 {[%clk 00:20:11]} {[%emt 00:00:52]} Ne6
{[%clk 00:23:13]} {[%emt 00:01:06]} 14. Nb3 {[%clk 00:18:15]} {[%emt 00:02:07]}
Qe7 {[%clk 00:21:37]} {[%emt 00:01:44]} 15. Qd2 {[%clk 00:15:17]} {[%emt
00:03:10]} Rad8 {[%clk 00:19:09]} {[%emt 00:02:37]} 16. Rac1 {[%clk 00:12:30]}
{[%emt 00:02:57]} Nf8 {[%clk 00:17:44]} {[%emt 00:01:34]} 17. a4 {[%clk
00:10:16]} {[%emt 00:02:26]} a6 {[%clk 00:16:50]} {[%emt 00:01:04]} 18. Bg5
{[%clk 00:09:05]} {[%emt 00:01:20]} Qe6 {[%clk 00:13:14]} {[%emt 00:03:45]} 19.
Nd5 {[%clk 00:07:30]} {[%emt 00:01:46]} Rd7 {[%clk 00:11:22]} {[%emt 00:02:02]}
20. Nd4 {[%clk 00:05:39]} {[%emt 00:02:01]} Qe5 {[%clk 00:10:56]} {[%emt
00:00:36]} 21. f4 {[%clk 00:05:03]} {[%emt 00:00:46]} Nxe4 {[%clk 00:06:49]}
{[%emt 00:04:17]} 22. fxe5 {[%clk 00:05:11]} {[%emt 00:00:03]} Nxd2 {[%clk
00:06:47]} {[%emt 00:00:12]} 23. Rxd2 {[%clk 00:05:02]} {[%emt 00:00:19]} Bxe5
{[%clk 00:05:01]} {[%emt 00:01:55]} 24. Nf6+ {[%clk 00:04:02]} {[%emt
00:01:11]} Bxf6 {[%clk 00:05:04]} {[%emt 00:00:07]} 25. Bxf6 {[%clk 00:04:10]}
{[%emt 00:00:01]} Ne6 {[%clk 00:04:51]} {[%emt 00:00:22]} 26. Re1 {[%clk
00:03:39]} {[%emt 00:00:42]} Rf8 {[%clk 00:04:19]} {[%emt 00:00:42]} 27. Nxe6
{[%clk 00:03:28]} {[%emt 00:00:22]} fxe6 {[%clk 00:04:23]} {[%emt 00:00:05]} 28.
Rxe6 {[%clk 00:03:37]} {[%emt 00:00:02]} Rdf7 {[%clk 00:04:19]} {[%emt
00:00:13]} 29. Rf2 {[%clk 00:03:44]} {[%emt 00:00:03]} h6 {[%clk 00:02:56]}
{[%emt 00:01:33]} 30. Bd4 {[%clk 00:02:30]} {[%emt 00:01:23]} Kh7 {[%clk
00:02:54]} {[%emt 00:00:12]} 31. Ref6 {[%clk 00:02:23]} {[%emt 00:00:17]} Rxf6
{[%clk 00:02:47]} {[%emt 00:00:17]} 32. Rxf6 {[%clk 00:02:32]} {[%emt
00:00:01]} Re8 {[%clk 00:02:45]} {[%emt 00:00:12]} 33. Rf7+ {[%clk 00:02:37]}
{[%emt 00:00:05]} Kg8 {[%clk 00:02:51]} {[%emt 00:00:03]} 34. Rxc7 {[%clk
00:02:34]} {[%emt 00:00:14]} Re2 {[%clk 00:02:44]} {[%emt 00:00:16]} 35. Kf1
{[%clk 00:02:29]} {[%emt 00:00:16]} Rc2 {[%clk 00:02:38]} {[%emt 00:00:16]} 36.
Bc3 {[%clk 00:02:31]} {[%emt 00:00:07]} b6 {[%clk 00:02:27]} {[%emt 00:00:22]}
37. Rb7 {[%clk 00:02:35]} {[%emt 00:00:07]} Rc1+ {[%clk 00:01:49]} {[%emt
00:00:48]} 38. Kf2 {[%clk 00:02:43]} {[%emt 00:00:02]} Ra1 {[%clk 00:01:44]}
{[%emt 00:00:15]} 39. Rxb6 {[%clk 00:02:17]} {[%emt 00:00:37]} Rxa4 {[%clk
00:01:43]} {[%emt 00:00:10]} 40. Rxd6 {[%clk 00:02:25]} {[%emt 00:00:03]} Rxc4
{[%clk 00:01:29]} {[%emt 00:00:23]} 41. Rxg6+ {[%clk 00:02:33]} {[%emt
00:00:02]} Kf7 {[%clk 00:01:30]} {[%emt 00:00:09]} 42. Rf6+ {[%clk 00:02:28]}
{[%emt 00:00:15]} Ke7 {[%clk 00:01:22]} {[%emt 00:00:17]} 43. Rxh6 {[%clk
00:02:30]} {[%emt 00:00:10]} a5 {[%clk 00:01:14]} {[%emt 00:00:17]} 44. Kg3
{[%clk 00:02:09]} {[%emt 00:00:31]} a4 {[%clk 00:01:12]} {[%emt 00:00:12]} 45.
Rh4 {[%clk 00:02:13]} {[%emt 00:00:06]} Rc6 {[%clk 00:00:46]} {[%emt 00:00:36]}
46. Rxa4 {[%clk 00:02:21]} {[%emt 00:00:03]} Re6 {[%clk 00:00:44]} {[%emt
00:00:11]} 47. Kf3 {[%clk 00:02:24]} {[%emt 00:00:07]} Kf7 {[%clk 00:00:43]}
{[%emt 00:00:11]} 48. g4 {[%clk 00:02:26]} {[%emt 00:00:08]} Rh6 {[%clk
00:00:31]} {[%emt 00:00:22]} 49. Ra7+ {[%clk 00:02:26]} {[%emt 00:00:11]} Ke8
{[%clk 00:00:32]} {[%emt 00:00:08]} 50. Kg3 {[%clk 00:02:18]} {[%emt 00:00:19]}
Re6 {[%clk 00:00:35]} {[%emt 00:00:09]} 51. h4 {[%clk 00:02:23]} {[%emt
00:00:02]} Re2 {[%clk 00:00:36]} {[%emt 00:00:09]} 52. h5 {[%clk 00:02:25]}
{[%emt 00:00:07]} Kf8 {[%clk 00:00:37]} {[%emt 00:00:09]} 53. h6 {[%clk
00:02:33]} {[%emt 00:00:03]} Re3+ {[%clk 00:00:22]} {[%emt 00:00:25]} 54. Kf4
{[%clk 00:02:38]} {[%emt 00:00:06]} Rh3 {[%clk 00:00:20]} {[%emt 00:00:12]} 55.
h7 {[%clk 00:02:43]} {[%emt 00:00:04]} 1-0